Cogmind - Beta 15 @@@ ROGUE MODE // 2025.06.06 @ 09:05:02 Player: Fleshy Vegetable Bird Result: Destroyed by S-27 Virus with Autogun Performance ------------- Evolutions (4) 2000 Regions Visited (8) 1600 Robots Destroyed (91) 455 Value Destroyed (2814) 2814 Prototype IDs (19) 380 Alien Tech Used (0) 0 Bonus (1274) 1274 TOTAL SCORE: 8523 Bonus ------- Follower Combat Kills 174 Registered with UFD 300 Met Optimus in HQ 500 Met Imprinter 300 Cogmind --------- Core Integrity 0/850 Matter 291/300 Energy 100/100 System Corruption 2% Temperature Cool (0) Movement Core (50) Location -5/Proximity Caves Parts ------- > --- POWER (1) -------- (None) > --- PROPULSION (5) --- (None) > --- UTILITY (5) ------ Advanced Signal Interpreter Advanced Target Analyzer Armor Integrity Analyzer Experimental System Shield > --- WEAPON (4) ------- (None) > --- INVENTORY (5) ---- Improved Treads Experimental Core Analyzer Enhanced Scrap Shield Makeshift Sword Peak State ------------ > --- POWER ------------ Micro Nuclear Core > --- PROPULSION ------- Advanced Treads Improved Medium Treads > --- UTILITY ---------- Huge Storage Unit Advanced Sensor Array Improved Signal Interpreter Makeshift Hacking Suite Improved Component Analysis Suite > --- WEAPON ----------- Wave Gun Rocket Array RU-N14's Throwing Claymores RU-N14's Throwing Claymores > --- INVENTORY -------- Improved Cryofiber Web High-capacity Matter Pod Spectral Analyzer Experimental Targeting Computer Advanced Target Analyzer Experimental Core Analyzer Armor Integrity Analyzer Makeshift Light Armor Plating Enhanced Scrap Shield EM Shield Hacking Suite Makeshift System Shield Experimental System Shield Storm Laser Plasma Cutter CPS Tube CPS Tube RU-N14's Throwing Claymores Makeshift Sword CR-A16's Pointy Stick Vortex Trap [Rating: 68] Favorites ----------- Power Nuclear Core Engine Subdweller Power Source Power Core Nuclear Core Propulsion Spiked Treads Treads Spiked Treads Wheel Wheel Utility Humpback Device Advanced Sensor Array Storage Humpback Processor Improved Signal Interpreter Hackware Makeshift Hacking Suite Protection Makeshift Light Armor Plating Weapon Barrage Gun Energy Gun Storm Laser Energy Cannon Cooled Plasma Cannon Ballistic Gun Barrage Gun Ballistic Cannon Light Cannon Launcher Improved Grenade Launcher Special Weapon RU-N14's Throwing Claymores Impact Weapon Hammer Slashing Weapon Makeshift Axe Piercing Weapon Heavy Pick Build | -11 -10 -10 -8 -6 -6 -6 -6 -5 ------- Run | Yrd Mat Sub Scr Fac Low Low Zio Pro Slots Evolved 8 | . . . . 8 . . . . Power . | . . . . . . . . . Propulsion 3 | . . . . 3 . . . . Utility 3 | . . . . 3 . . . . Weapon 2 | . . . . 2 . . . . Parts Attached 89 | 8 9 15 13 19 2 3 6 14 Power 9 | 1 1 2 1 1 1 1 . 1 Engine 6 | 1 1 2 . . 1 . . 1 Core 3 | . . . 1 1 . 1 . . Reactor . | . . . . . . . . . Propulsion 24 | 2 2 6 7 7 . . . . Treads 9 | . 2 1 4 2 . . . . Leg . | . . . . . . . . . Wheel 15 | 2 . 5 3 5 . . . . Hover . | . . . . . . . . . Flight . | . . . . . . . . . Utility 23 | 2 1 3 2 7 . . 2 6 Device 7 | 1 . 2 . 2 . . . 2 Storage 5 | 1 1 1 1 . . . 1 . Processor 7 | . . . . 3 . . 1 3 Hackware 2 | . . . . 1 . . . 1 Protection 2 | . . . 1 1 . . . . Artifact . | . . . . . . . . . Weapon 33 | 3 5 4 3 4 1 2 4 7 Energy Gun 5 | 1 . 1 1 . . . 1 1 Energy Cannon 1 | . . . . 1 . . . . Ballistic Gun 9 | 2 2 1 . 2 . 2 . . Ballistic Cannon 1 | . 1 . . . . . . . Launcher 6 | . 1 2 1 . . . 2 . Special Weapon 6 | . . . 1 . . . 1 4 Impact Weapon 1 | . 1 . . . . . . . Slashing Weapon 2 | . . . . . 1 . . 1 Piercing Weapon 2 | . . . . 1 . . . 1 Special Melee Weapon . | . . . . . . . . . Unidentified Prototypes 5 | . . . . 1 . . 4 . Parts Lost 43 | . 2 11 . 9 6 1 . 14 Power 7 | . 1 2 . 1 . 1 . 2 Propulsion 16 | . . 6 . 4 4 . . 2 Utility 6 | . . 1 . 1 . . . 4 Weapon 14 | . 1 2 . 3 2 . . 6 Highest Loss Streak 8 | . 1 3 . 4 4 1 . 8 To Critical Strikes . | . . . . . . . . . Average Backups 21 | 2 15 18 25 13 14 15 21 19 Power 1 | . . . 1 1 1 . . . Propulsion 2 | . 4 1 2 1 . . . . Utility 9 | . 6 5 9 6 10 11 14 12 Weapon 7 | . 4 9 9 . . . 4 3 Tool/Special . | . . . . . . . . . Unused Backups 61 | 3 1 5 25 10 1 . 6 10 Power 8 | 1 . 1 2 3 . . . 1 Propulsion 10 | 1 . 1 5 2 . . . 1 Utility 30 | 1 . 3 9 4 1 . 4 8 Weapon 12 | . 1 . 8 1 . . 2 . Tool/Special 1 | . . . 1 . . . . . Average Slot Usage (%) 77 | . 99 85 77 90 79 72 63 74 Engine 4 | . 13 14 3 . 5 . . . Core 7 | . . . 10 5 . 5 6 5 Treads 14 | . 15 10 17 4 8 13 13 11 Wheel 5 | . 12 15 3 23 15 . . . Device 3 | . 14 3 . 4 5 6 6 11 Storage 11 | . 14 14 13 6 6 6 6 5 Processor 3 | . . . . 6 13 13 12 7 Hackware 1 | . . . . 5 6 6 6 5 Energy Gun 1 | . . . . 2 . . 4 5 Ballistic Gun 8 | . 17 2 11 10 8 12 3 . Launcher 11 | . . 22 14 3 . . . 5 Special Weapon 1 | . . . 1 . . . . 10 Peak Build Rating 68 | 8 9 14 23 56 50 48 66 68 Average Rating 27 | 4 8 11 18 45 44 47 60 62 On Entrance 27 | . 8 9 14 22 40 40 48 64 Naked Turns . | . . . . . . . . . Heaviest Build 216 | 14 51 211 216 68 63 58 108 119 Greatest Support 74 | 20 40 40 42 74 52 52 52 52 Greatest Overweight (x) 36 | 4 2 21 21 3 6 1 2 36 Average Overweight (x) 4 | . 1 5 7 1 1 . 1 2 Largest Inventory Capacity 35 | 8 20 35 35 20 20 20 25 25 Average Capacity 30 | 7 19 31 34 20 20 20 24 24 Most Carried 35 | 8 20 25 35 20 20 19 25 25 Average Carried 24 | 3 15 20 27 17 18 17 23 23 Final Capacity 35 | 8 20 35 20 20 20 20 25 5 Final Carried 25 | 8 20 25 20 20 16 19 25 5 Class Distribution -------------------- 62% | Hauler-Mutant 13% | Mutant 11% | Skirmisher 5% | Derelict-Mutant 3% | Derelict-Skirmisher Dominant Class ---------------- Mutant | -10/Materials Hauler-Mutant | -10/Subcaves Hauler-Mutant | -8/Scraptown Derelict-Skirmisher | -6/Factory Derelict-Mutant | -6/Lower Caves Mutant | -6/Lower Caves Skirmisher | -6/Zion Skirmisher | -5/Proximity Caves Resources | -11 -10 -10 -8 -6 -6 -6 -6 -5 ----------- Run | Yrd Mat Sub Scr Fac Low Low Zio Pro Matter Collected 3579 | 144 757 723 578 559 169 65 57 527 Remotely . | . . . . . . . . . Salvage Created 3181 | 176 408 348 205 1177 91 50 . 726 Parts 169 | 13 37 24 15 53 2 7 . 18 Haulers Intercepted 3 | . 2 . . 1 . . . . Recyclers Shooed . | . . . . . . . . . Parts Field Recycled . | . . . . . . . . . Retrieved Matter . | . . . . . . . . . Parts Self-Destructed 39 | . . 8 13 . 9 3 . 6 Prevented . | . . . . . . . . . Kills | -11 -10 -10 -8 -6 -6 -6 -6 -5 ------- Run | Yrd Mat Sub Scr Fac Low Low Zio Pro Combat Hostiles Destroyed 59 | . 11 16 . 12 2 1 . 17 Melee 5 | . . . . 1 2 1 . 1 Guns 21 | . 7 1 . 9 . . . 4 Cannons 4 | . 4 . . . . . . . AOE 29 | . . 15 . 2 . . . 12 Classes Destroyed 17 | 2 5 2 . 4 1 1 . 2 Worker 4 | . . . . 4 . . . . Builder 3 | . . . . 1 . . . 2 Tunneler 8 | 5 2 . . 1 . . . . Hauler 3 | . 2 . . 1 . . . . Recycler 5 | 1 . . . 2 . . . 2 Operator 3 | . 1 . . 2 . . . . Watcher 6 | . 3 . . 1 . . . 2 Swarmer 14 | . 8 3 . 2 . . . 1 Grunt 18 | . 3 . . 7 1 . . 7 Brawler 2 | . . . . . 1 . . 1 Duelist 2 | . . . . . . . . 2 Protector 1 | . . . . . . . . 1 Sentry 6 | . . . . 1 . . . 5 Hunter 1 | . . . . . . 1 . . Programmer 2 | . . . . 2 . . . . Artisan 1 | . . 1 . . . . . . Subdweller 13 | . . 13 . . . . . . Best Kill Streak 8 | 4 5 3 . 5 1 1 . 8 Combat Bots Only 5 | . 3 3 . 3 1 1 . 5 Max Kills in Single Turn 4 | 1 1 2 . 3 1 1 . 4 Gunslinging . | . . . . . . . . . Exploded 3 | . . 2 . 1 . . . 3 Melee 1 | . . . . 1 1 1 . 1 Uniques/NPCs Destroyed . | . . . . . . . . . Combat | -11 -10 -10 -8 -6 -6 -6 -6 -5 -------- Run | Yrd Mat Sub Scr Fac Low Low Zio Pro Hostile Shots Fired 437 | . 67 98 . 108 34 12 . 118 Missed 131 | . 17 38 . 39 4 1 . 32 Hits 306 | . 50 60 . 69 30 11 . 86 Melee 3 | . . . . . 2 . . 1 Projectile 303 | . 50 60 . 69 28 11 . 85 Critical Strikes 14 | . . . . 4 . . . 10 Damage Taken 5354 | . 497 992 . 956 584 189 . 2136 Core 1098 | . 68 178 . 91 37 73 . 651 Absorbed by Shields . | . . . . . . . . . Core Remaining (%) 50 | 100 . . 1 . . . . . Volleys Fired 194 | 8 50 46 26 45 . . . 19 Largest 4 | 2 2 2 1 4 . . . 4 Hottest 250 | 40 50 85 20 142 . . . 250 Shots Fired 347 | 16 98 73 26 96 . 1 . 37 Gun 208 | 16 64 23 . 91 . 1 . 13 Cannon 36 | . 34 2 . . . . . . Launcher 63 | . . 48 . 5 . . . 10 Special 40 | . . . 26 . . . . 14 Kinetic 211 | 16 97 19 . 78 . 1 . . Thermal 46 | . 1 6 26 . . . . 13 Explosive 77 | . . 48 . 5 . . . 24 Electromagnetic 13 | . . . . 13 . . . . Robot Hit Streak 19 | 4 9 18 19 9 . . . 7 Robot Miss Streak 6 | 1 3 3 2 4 . . . 6 Penetration Max . | . . . . . . . . . Secondary Targets 1 | . . . . 1 . . . . Max Gunslinging Chain 1 | . . . . 1 . . . . Shots Hit Robots 226 | 9 57 38 22 68 7 3 . 22 Core Hits 220 | 8 27 31 10 51 4 2 . 87 Critical Kills . | . . . . . . . . . Critical Parts Destroyed 1 | . . . . 1 . . . . Critical Strikes 10 | . 1 1 . 4 1 . . 3 Burn 1 | . . . . . . . . 1 Destroy 1 | . . . . 1 . . . . Blast 2 | . 1 1 . . . . . . Corrupt 1 | . . . . 1 . . . . Sever 3 | . . . . . 1 . . 2 Impale 2 | . . . . 2 . . . . Melee Attacks 74 | . 3 26 . 27 10 3 1 4 Impact 29 | . 3 26 . . . . . . Slashing 15 | . . . . . 10 3 1 1 Piercing 30 | . . . . 27 . . . 3 Sneak Attacks 9 | . . 1 . 8 . . . . Combat Hostiles . | . . . . . . . . . Follow-up Attacks . | . . . . . . . . . Damage Inflicted 9298 | 96 811 2192 267 2065 274 98 . 3495 Guns 2358 | 96 471 260 . 1206 . . . 325 Cannons 374 | . 340 34 . . . . . . Explosions 4887 | . . 1820 . 316 . . . 2751 Melee 1049 | . . 42 . 543 274 98 . 92 Ramming 36 | . . 36 . . . . . . Kinetic 2133 | 96 799 235 . 1003 . . . . Thermal 663 | . 12 59 267 . . . . 325 Explosive 4887 | . . 1820 . 316 . . . 2751 Electromagnetic 203 | . . . . 203 . . . . Impact 42 | . . 42 . . . . . . Slashing 726 | . . . . . 274 98 . 354 Piercing 608 | . . . . 543 . . . 65 Highest Corruption 2 | . . . . 2 2 2 2 2 Average Corruption 1 | . . . . 1 2 2 2 2 Corruption Purged . | . . . . . . . . . Corruption Blocked . | . . . . . . . . . Effects 44 | . . . . 2 13 21 . 8 Message Errors 8 | . . . . . 1 5 . 2 Matter Fused 10 | . . . . . 3 5 . 2 Heat Flow Errors 2 | . . . . . 1 . . 1 Energy Discharges 5 | . . . . . 2 2 . 1 Parts Rejected 1 | . . . . . 1 . . . Data Loss (minor) 12 | . . . . 1 3 7 . 1 Data Loss (major) 3 | . . . . . 2 1 . . Misfires 1 | . . . . . . 1 . . Alerts 2 | . . . . 1 . . . 1 Overload Shots . | . . . . . . . . . Overflow Damage 119 | . 1 15 2 60 . 1 . 40 Projectiles 13 | . 1 10 2 . . . . . Explosions 46 | . . 3 . 3 . . . 40 Melee 60 | . . 2 . 57 . 1 . . Knockbacks 7 | . 6 1 . . . . . . Impact . | . . . . . . . . . Kinetic 7 | . 6 1 . . . . . . Secondary . | . . . . . . . . . Self-Inflicted Damage 219 | . . 66 . . . . . 153 Shots 11 | . . 2 . . . . . 9 Rammed 1 | . . 1 . . . . . . Targets Rammed 1 | . . 1 . . . . . . Kicked . | . . . . . . . . . Crushed . | . . . . . . . . . Highest Temperature 282 | . 11 . . 132 159 . 282 248 Average Temperature 51 | . 3 . . 23 85 . 151 89 Received Heat Transfer 1210 | . 132 99 . 295 207 . . 477 Siege Activations . | . . . . . . . . . Martial Activations . | . . . . . . . . . Shielding Activations . | . . . . . . . . . Robots Disrupted 1 | . . . . 1 . . . . Combat Hostiles . | . . . . . . . . . Robots Corrupted 1 | . . 1 . . . . . . Combat Hostiles . | . . . . . . . . . Parts Fried 4 | . . 3 . 1 . . . . Impact Corruptions 1 | . . 1 . . . . . . Robots Melted . | . . . . . . . . . Combat Hostiles . | . . . . . . . . . Parts Melted 1 | . . . . . . . . 1 Heat Transferred 1582 | . 25 148 888 . . . . 521 Parts Sabotaged . | . . . . . . . . . Parts Stolen . | . . . . . . . . . Parts Stripped . | . . . . . . . . . Power Chain Reactions . | . . . . . . . . . Alert | -11 -10 -10 -8 -6 -6 -6 -6 -5 ------- Run | Yrd Mat Sub Scr Fac Low Low Zio Pro Maximum Alert Level 1 | . . . . 1 . . . . Low Security (%) 87 | 100 100 . . 74 . . . . Level 1 12 | . . . . 25 . . . . Level 2 . | . . . . . . . . . Level 3 . | . . . . . . . . . Level 4 . | . . . . . . . . . Level 5 . | . . . . . . . . . High Security . | . . . . . . . . . Max Security . | . . . . . . . . . Peak Influence 289 | 20 115 . . 289 . . . . Initial . | . . . . . . . . . Average 65 | 4 30 . . 103 . . . . Influence Increases 1995 | 30 362 330 30 747 50 30 . 416 Destroy 0b10 Robot/C 1020 | . 220 60 . 340 40 20 . 340 Destroy 0b10 Robot/NC 200 | 30 40 . 30 65 . . . 35 Destroy Leader 154 | . 50 . . 74 10 10 . 10 Allied During Kill 37 | . . . . 36 . . . 1 Successful Hack 43 | . 17 . . 26 . . . . Disable Machine 105 | . 15 . . 90 . . . . Destroy Structure 61 | . 5 . . 56 . . . . Lose Combat Pursuer 375 | . 15 270 . 60 . . . 30 Influence Decreases 1867 | 30 336 351 5 532 295 30 . 288 Entered New Map 141 | . . 14 5 30 92 . . . Time Decay 1280 | 30 316 277 . 396 183 30 . 48 Lost Part 290 | . 20 60 . 70 . . . 140 Lost Ally 140 | . . . . 20 20 . . 100 Purge Threat 16 | . . . . 16 . . . . Squads Dispatched 10 | . . . . 9 . . . 1 Investigation 3 | . . . . 3 . . . . Extermination 2 | . . . . 2 . . . . Reinforcement 4 | . . . . 4 . . . . Assault 1 | . . . . . . . . 1 Garrison . | . . . . . . . . . Intercept . | . . . . . . . . . Searches Triggered . | . . . . . . . . . Construction Impeded 1 | . . . . 1 . . . . Haulers Reinforced . | . . . . . . . . . Active Scanning Responses . | . . . . . . . . . Cargo Convoy Interrupts . | . . . . . . . . . Stealth | -11 -10 -10 -8 -6 -6 -6 -6 -5 --------- Run | Yrd Mat Sub Scr Fac Low Low Zio Pro Distress Signals 3 | . 2 . . . . . . 1 Communications Jammed . | . . . . . . . . . Distress Signals . | . . . . . . . . . Times Spotted 106 | . 21 27 . 30 5 1 . 22 Peak Tracking Total 5 | . 3 5 . 5 3 1 . 5 Tactical Retreats 16 | . 1 11 . 2 . . . 2 Traps | -11 -10 -10 -8 -6 -6 -6 -6 -5 ------- Run | Yrd Mat Sub Scr Fac Low Low Zio Pro Traps Triggered 4 | . 2 2 . . . . . . Indirectly . | . . . . . . . . . Trap Hack Attempts . | . . . . . . . . . Triggered . | . . . . . . . . . Disarmed . | . . . . . . . . . Reprogrammed . | . . . . . . . . . Reused 3 | . . . . . 2 . . 1 Traps Extracted . | . . . . . . . . . Installed 3 | . . . . . 2 . . 1 Triggered 3 | . . . . . 2 . . 1 Most Traps Carried 3 | . . . 3 3 3 1 1 1 Machines | -11 -10 -10 -8 -6 -6 -6 -6 -5 ---------- Run | Yrd Mat Sub Scr Fac Low Low Zio Pro Machines Disabled 9 | . 1 1 . 6 . . . 1 Max in Single Turn 2 | . 1 1 . 2 . . . 1 Machines Repaired . | . . . . . . . . . Machines Dismantled . | . . . . . . . . . Machines Sabotaged . | . . . . . . . . . Overloaded Fab Kills . | . . . . . . . . . Hacking | -11 -10 -10 -8 -6 -6 -6 -6 -5 --------- Run | Yrd Mat Sub Scr Fac Low Low Zio Pro Machines Accessed 26 | . 5 1 7 12 . . . 1 Terminals 12 | . 5 . . 6 . . . 1 Fabricators 2 | . . . . 2 . . . . Repair Stations . | . . . . . . . . . Recycling Units 3 | . . . . 3 . . . . Scanalyzers . | . . . . . . . . . Garrison Access 1 | . . . . 1 . . . . Total Hacks 98 | . 21 4 43 29 . . . 1 Successful 73 | . 7 4 43 18 . . . 1 Failed 25 | . 14 . . 11 . . . . Catastrophic 2 | . 1 . . 1 . . . . Database Lockouts . | . . . . . . . . . Manual 44 | . 19 . . 24 . . 1 . Terminals 42 | . 21 . . 20 . . . 1 Fabricators 3 | . . . . 3 . . . . Repair Stations . | . . . . . . . . . Recycling Units 4 | . . . . 4 . . . . Scanalyzers . | . . . . . . . . . Garrison Access 2 | . . . . 2 . . . . Terminal Hacks 57 | . 3 4 43 6 . . . 1 Record 41 | . . 4 37 . . . . . Robot Analysis 8 | . 2 . 5 1 . . . . Prototype ID Bank 1 | . . . . 1 . . . . Open Door 1 | . . . . . . . . 1 Branch Access Points 1 | . . . . 1 . . . . Terminal Index 1 | . . . . 1 . . . . Unreport Threat 1 | . . . . 1 . . . . Locate Traps 1 | . 1 . . . . . . . Recall Reinforcements 1 | . . . . 1 . . . . Proto ID Catalog 1 | . . . 1 . . . . . Fabricator Hacks . | . . . . . . . . . Repair Station Hacks . | . . . . . . . . . Recycling Unit Hacks . | . . . . . . . . . Scanalyzer . | . . . . . . . . . Garrison Access Hacks . | . . . . . . . . . Unauthorized Hacks 16 | . 4 . . 12 . . . . Terminals 12 | . 4 . . 8 . . . . Track 5 | . 2 . . 3 . . . . Botnet 7 | . 2 . . 5 . . . . Fabricators 1 | . . . . 1 . . . . Fabnet 1 | . . . . 1 . . . . Repair Stations . | . . . . . . . . . Recycling Units 3 | . . . . 3 . . . . Fedlink 3 | . . . . 3 . . . . Scanalyzers . | . . . . . . . . . Garrison Access . | . . . . . . . . . Data Cores Recovered 2 | . . . . 2 . . . . Used 1 | . . . . 1 . . . . Hacking Detections 13 | . 5 . . 8 . . . . Full Trace Events . | . . . . . . . . . Feedback Events . | . . . . . . . . . Feedback Blocked . | . . . . . . . . . Robot Schematics Acquired 3 | . . . . . . . 3 . Robots Built . | . . . . . . . . . Authchips . | . . . . . . . . . Time . | . . . . . . . . . Total Robot Build Rating . | . . . . . . . . . Part Schematics Acquired 14 | . . . . . . . 14 . Parts Built . | . . . . . . . . . Authchips . | . . . . . . . . . Time . | . . . . . . . . . Total Part Build Rating . | . . . . . . . . . Parts Repaired . | . . . . . . . . . Time . | . . . . . . . . . Parts Recycled . | . . . . . . . . . Recycled Matter . | . . . . . . . . . Retrieved Matter . | . . . . . . . . . Retrieved Components . | . . . . . . . . . Parts Scanalyzed . | . . . . . . . . . Part Schematics Acquired . | . . . . . . . . . Parts Damaged . | . . . . . . . . . Bothacking | -11 -10 -10 -8 -6 -6 -6 -6 -5 ------------ Run | Yrd Mat Sub Scr Fac Low Low Zio Pro Used RIF Installer . | . . . . . . . . . Robots Hacked 1 | . . . . . . . . 1 Non-combat . | . . . . . . . . . Combat 1 | . . . . . . . . 1 Robot Hacks Applied . | . . . . . . . . . Relay Couplers Released . | . . . . . . . . . Fabnet Peak Effective % 3 | . . . . . . . . 3 Autooverrided 1 | . . . . . . . . 1 Robots Rewired 5 | . . . . . . . . 5 Allies Hacked . | . . . . . . . . . Hacks Repelled . | . . . . . . . . . Allies | -11 -10 -10 -8 -6 -6 -6 -6 -5 -------- Run | Yrd Mat Sub Scr Fac Low Low Zio Pro Total Allies 8 | . . . 1 1 . . . 6 Largest Group 1 | . . . 1 1 1 . . 1 Highest-Rated Group 60 | . . . 60 60 35 . . 30 Highest-Rated Ally 60 | . . . 60 60 35 . . 30 Total Orders . | . . . . . . . . . Ally Attacks 34 | . . . . 27 . . . 7 Total Damage 1086 | . . . . 953 . . . 133 Kills 7 | . . . . 6 . . . 1 Allies Corrupted . | . . . . . . . . . Allies Melted . | . . . . . . . . . Intel | -11 -10 -10 -8 -6 -6 -6 -6 -5 ------- Run | Yrd Mat Sub Scr Fac Low Low Zio Pro Active Infowar (turns) 12979 | 10 1192 1230 . 901 1162 1695 3858 2931 Sensors 9630 | . . . . 136 1162 1695 3858 2779 Terrain 3412 | . . . . 765 . . 551 2096 Seismic 2432 | 10 1192 1230 . . . . . . Machine Analysis 2006 | . . . . . . . 1981 25 Robot Analysis Total 8 | . 2 . 5 1 . . . . Derelict Logs Recovered 10 | . . . 5 . 2 2 1 . Drone Launches . | . . . . . . . . . Drone Recoveries . | . . . . . . . . . Exploration | -11 -10 -10 -8 -6 -6 -6 -6 -5 ------------- Run | Yrd Mat Sub Scr Fac Low Low Zio Pro Turns Passed 38970 | 115 1192 5672 20582 1246 1379 1695 3858 3231 Spaces Moved 10046 | 61 542 1590 3148 797 873 728 1335 972 Core 80 | 13 . . . . . . . 67 Treads 5955 | . 211 425 2101 46 204 728 1335 905 Legs . | . . . . . . . . . Wheels 4011 | 48 331 1165 1047 751 669 . . . Hover . | . . . . . . . . . Flight . | . . . . . . . . . Fastest Speed 50 | 50 80 110 80 90 90 152 232 50 Average Speed 369 | 100 159 330 646 106 139 231 285 310 Slowest Speed 1850 | 250 240 1160 1160 225 232 232 312 1850 Overloaded Moves . | . . . . . . . . . Propulsion Burnouts . | . . . . . . . . . Robots Hopped . | . . . . . . . . . Potential Cave-ins . | . . . . . . . . . Cave-ins Triggered 1 | . . . . . . . . 1 Exploration Rate (%) 63 | 3 87 64 92 19 82 79 87 54 Regions Visited 8 Branch Regions 6 Pre-discovered Areas 10 | . . 1 4 1 2 . 2 . Known Exits Taken 4 | . . . . 1 1 1 1 . Unknown Exits Taken 4 | 1 1 1 1 . . . . . Scrap Searched 20 | . . 2 6 . 4 2 3 3 Spaces Dug 42 | . 1 27 . 12 2 . . . Terrain Destroyed 429 | . 1 221 . 48 2 . . 157 Melee 15 | . 1 . . 12 2 . . . Projectile 1 | . . . . . . . . 1 AOE 413 | . . 221 . 36 . . . 156 Terrain Rammed . | . . . . . . . . . Walls Destroyed . | . . . . . . . . . Machines Disabled . | . . . . . . . . . Actions | -11 -10 -10 -8 -6 -6 -6 -6 -5 --------- Run | Yrd Mat Sub Scr Fac Low Low Zio Pro Total 11423 | 100 764 1896 3332 1045 1025 738 1383 1140 Wait 619 | 3 135 150 34 130 127 1 12 27 Move 10038 | 60 541 1589 3147 796 872 727 1334 972 Hop . | . . . . . . . . . Pick Up 186 | 18 17 39 67 13 1 4 13 14 Fast Attach 20 | . 3 1 . 5 2 2 5 2 Attach 57 | 7 2 11 6 10 2 1 1 17 Detach 2 | . . . . . . . 2 . Swap 62 | 1 9 17 9 14 3 . 2 7 Drop 99 | 3 4 16 37 5 5 . 13 16 Fire 194 | 8 50 46 26 45 . . . 19 Melee 74 | . 3 26 . 27 10 3 1 4 Ram 1 | . . 1 . . . . . . Kick . | . . . . . . . . . Crush . | . . . . . . . . . Escape Stasis . | . . . . . . . . . Rewire 64 | . . . 3 . . . . 61 Trap 3 | . . . . . 2 . . 1 Miscellaneous 4 | . . . 3 . 1 . . . Route ------- -11/Scrapyard -10/Materials (discovered 4 exits: [*Mat x2] / [*Min] / *Sub) -10/Subcaves (discovered 2 exits: [*Mat] / *Scr) -8/Scraptown (discovered 2 exits: *Fac x2) -6/Factory (discovered 4 exits: *Low x2 / Ext x2) -6/Lower Caves -6/Lower Caves (discovered 2 exits: *Fac / *Zio) -6/Zion -5/Proximity Caves (discovered 1 exit: *Fac) History --------- Turn | Location | Event 19 | -11/Scrapyard | Discovered new exit (range 16) 116 | -11/Scrapyard | Entered Materials 236 | -10/Materials | Discovered new exit (range 13) 311 | -10/Materials | Build established: Mutant 334 | -10/Materials | Discovered new exit (range 16) 742 | -10/Materials | Discovered new exit (range 8) 1246 | -10/Materials | Build established: Scavenger-Mutant 1264 | -10/Materials | Discovered new exit (range 6) 1308 | -10/Materials | Entered Subcaves 1309 | -10/Subcaves | Approached by a straggling Scientist 1351 | -10/Subcaves | Discovered new exit (range 8) 1975 | -10/Subcaves | Lost 3 parts (1p2n) 1990 | -10/Subcaves | Ambushed by Subdweller buried in earth 2120 | -10/Subcaves | Visited Clippyterm 2123 | -10/Subcaves | Learned location of Deep Caves (-6) 2173 | -10/Subcaves | Ambushed by Subdweller buried in earth 2178 | -10/Subcaves | Core integrity fell below 50% 2183 | -10/Subcaves | Ambushed by Subdweller buried in earth 2227 | -10/Subcaves | Build established: Mutant 2283 | -10/Subcaves | Core integrity fell below 20% 2408 | -10/Subcaves | Curiously followed by a Cobbler waking with a query about "LVR3C" 2557 | -10/Subcaves | Scientist uncovered a shortcut to Scraptown 3010 | -10/Subcaves | A swath of the cavern ceiling suddenly collapsed 3020 | -10/Subcaves | Build established: Hauler-Mutant 3341 | -10/Subcaves | Lost 3 parts (1p1n1w) 3538 | -10/Subcaves | Shifting Twisted Machinery released Flamer 3899 | -10/Subcaves | Shifting Twisted Machinery released Sub. Beam Cannon 6290 | -10/Subcaves | Ambushed by Subdweller buried in earth 6980 | -10/Subcaves | Entered Scraptown 7433 | -8/Scraptown | Learned location of Extension (-6) 9022 | -8/Scraptown | Scanned Subdweller tech in exchange for log data 9045 | -8/Scraptown | Learned Research stockpile data 9057 | -8/Scraptown | Learned Research terminal intel 9068 | -8/Scraptown | Learned Factory stockpile data 9080 | -8/Scraptown | Learned Factory trap positions 9092 | -8/Scraptown | Learned location of Warlord (-4) 9196 | -8/Scraptown | Discovered new exit (range 13) 10033 | -8/Scraptown | Visited TADAMA 10323 | -8/Scraptown | Visited Spacefarers 10903 | -8/Scraptown | Heard Great Nut preacher, LISTEN AND RECITE! 10938 | -8/Scraptown | Visited Cyclists 13279 | -8/Scraptown | Visited UFD Registry 13279 | -8/Scraptown | Registered with UFD as "Phasebucket" 13442 | -8/Scraptown | Visited The Evicted 13766 | -8/Scraptown | Visited IN-MT5's Study 14196 | -8/Scraptown | Visited Red Mages 14729 | -8/Scraptown | Visited Symbiants 15089 | -8/Scraptown | Entered Cyclist Reading Room 15124 | -8/Scraptown | Learned location of Zion (-6) 17539 | -8/Scraptown | Visited Derelict Rescue Squad 17609 | -8/Scraptown | Found DRS Beacon 17842 | -8/Scraptown | Visited Botcube Research 22243 | -8/Scraptown | Visited Curators Association 22434 | -8/Scraptown | Delivered Scrap Shield to a Scientist 23077 | -8/Scraptown | Visited Science Testing Area 23176 | -8/Scraptown | Visited Analyses Database 23334 | -8/Scraptown | Visited DA-N13 Charitable Foundation 23394 | -8/Scraptown | Found DCF Scrap (28 items) 23676 | -8/Scraptown | Visited Scrap Suit Storage 23692 | -8/Scraptown | Found Scrap Suit 23709 | -8/Scraptown | Found Scrap Suit 23808 | -8/Scraptown | Visited Science Guys 24063 | -8/Scraptown | Visited Chapter 10 24726 | -8/Scraptown | Visited Junk Cannon Lab 25481 | -8/Scraptown | Found Botcube 27407 | -8/Scraptown | Botcube activated 27427 | -8/Scraptown | Botcube completed mutation into legged form, armed with 2 guns. 27476 | -8/Scraptown | Met Optimus 27476 | -8/Scraptown | Accepted into 0bPrime 27504 | -8/Scraptown | Build established: Mutant 27551 | -8/Scraptown | Discovered new exit (range 5) 27562 | -8/Scraptown | Entered Factory 27562 | -6/Factory | Accompanied by 1 ally 27562 | -6/Factory | Evolved 8 slots: Propulsion x3, Utility x3, Weapon x2 27563 | -6/Factory | Loaded intel: 109 trap records 27926 | -6/Factory | Build established: Derelict-Skirmisher 27957 | -6/Factory | Identified exit to Lower Caves 27957 | -6/Factory | Identified exit to Extension 28063 | -6/Factory | Loaded intel: 8 recycling unit locations 28195 | -6/Factory | Lost 4 parts (1p2n1w) 28196 | -6/Factory | Learned location of Protoforge (-2) 28461 | -6/Factory | Build established: Derelict-Mutant 28593 | -6/Factory | Botcube activated 28599 | -6/Factory | Botcube completed mutation into flying form (unarmed). 28808 | -6/Factory | Entered Lower Caves 28808 | -6/Lower Caves | Accompanied by 1 ally 28810 | -6/Lower Caves | UFD Scientist delivered a prototype 28813 | -6/Lower Caves | Found Prototype Protection 28942 | -6/Lower Caves | A Derelict revealed a hidden shortcut to a safe place 29701 | -6/Lower Caves | Activated DRS Beacon 29722 | -6/Lower Caves | Lost 4 parts (2n2w) 29823 | -6/Lower Caves | Discovered new exit (range 12) 29919 | -6/Lower Caves | Identified exit to Lower Caves 30187 | -6/Lower Caves | Entered another Lower Caves area 30487 | -6/Lower Caves | Build established: Mutant 30770 | -6/Lower Caves | Discovered new exit (range 9) 30881 | -6/Lower Caves | Identified exit to Factory 31320 | -6/Lower Caves | Learned location of 1 exit from Factory 31713 | -6/Lower Caves | Discovered new exit (range 7) 31738 | -6/Lower Caves | Identified exit to Zion 31766 | -6/Lower Caves | Learned 4 Factory zone layouts 31882 | -6/Lower Caves | Entered Zion 31973 | -6/Zion | Found CR-A16's Pointy Stick 32044 | -6/Zion | System corruption cleaned by Quarantine Array 32361 | -6/Zion | Discovered new exit (range 15) 32452 | -6/Zion | Received a hallucinogenic algorithm 32452 | -6/Zion | Ran a hallucination algorithm 32643 | -6/Zion | Found Prototype Special Weapon 32647 | -6/Zion | Found Prototype Special Weapon 32650 | -6/Zion | Found Prototype Special Weapon 32653 | -6/Zion | Found Prototype Special Weapon 32654 | -6/Zion | Identified RU-N14's Throwing Claymores (x4) 32772 | -6/Zion | Learned location of Quarantine (-2) 32899 | -6/Zion | Found Prototype Energy Gun 32899 | -6/Zion | Identified Storm Laser 33125 | -6/Zion | Learned Factory emergency access door positions 33135 | -6/Zion | Learned 12 Factory zone layouts 33186 | -6/Zion | Build established: Skirmisher 33201 | -6/Zion | Found Prototype Hackware 33206 | -6/Zion | Found Prototype Processor 33213 | -6/Zion | Found Prototype Processor 33232 | -6/Zion | Found Prototype Processor 33851 | -6/Zion | Acquired unknown access codes intercepted by a Zionite 34841 | -6/Zion | Turned away by Imprinter 35111 | -6/Zion | Given A8's code to call for help 35306 | -6/Zion | Found Prototype Launcher 35306 | -6/Zion | Identified Rocket Array 35723 | -6/Zion | Identified exit to Proximity Caves 35740 | -6/Zion | Entered Proximity Caves 36480 | -5/Proximity Caves | Identified Exp. System Shield 36612 | -5/Proximity Caves | Identified Enh. Scrap Shield 36643 | -5/Proximity Caves | Identified Exp. Targeting Computer 36653 | -5/Proximity Caves | Identified Spectral Analyzer 36709 | -5/Proximity Caves | Identified Exp. Core Analyzer 36710 | -5/Proximity Caves | Build established: Derelict-Skirmisher 37315 | -5/Proximity Caves | Build established: Skirmisher 38276 | -5/Proximity Caves | Attracted the attention of an 0b10 outpost 38503 | -5/Proximity Caves | Crushed by falling debris 38603 | -5/Proximity Caves | Snuck into a huge 0b10 base via the rear entrance 38696 | -5/Proximity Caves | Core integrity fell below 50% 38755 | -5/Proximity Caves | Lost 8 parts (2p2n2u2w) 38914 | -5/Proximity Caves | Discovered exit to Factory (range 8) 38915 | -5/Proximity Caves | Lost 5 parts (1u4w) 38950 | -5/Proximity Caves | Core integrity fell below 20% 38971 | -5/Proximity Caves | Destroyed by S-27 Virus with Autogun Last Messages --------------- 38921_ Attempting to rewire L-41 Fighter. 38922_ System corrupted: Component data lost. 38922_ Attempting to rewire L-41 Fighter. 38922_ L-41 Fighter rewired. 38922_ Imp 6a destroyed. 38923_ Attempting to rewire L-41 Fighter. 38936_ L-41 Fighter rewired. 38938_ Attempting to rewire L-41 Fighter. 38944_ L-41 Fighter rewired. 38945_ Attempting to rewire L-41 Fighter. 38945_ L-41 Fighter rewired. 38947_ Attempting to rewire H-66 Slayer. 38948_ Destroyed VTOL Module. 38948_ Attempting to rewire H-66 Slayer. 38949_ Fighter 6c destroyed. 38949_ Attempting to rewire H-66 Slayer. 38951_ S-27 Virus Autogun severed. 38951_ Attempting to rewire H-66 Slayer. 38959_ Fighter 6d destroyed. 38960_ Attempting to rewire H-66 Slayer. Map ----- +----------------------------------------------------+ | ?????????????????????????????????????????????????? | | ?????????????????????????????????????????????????? | | ?????????????????????????????????????????????????? | | ?????????????????????????????????????????????????? | | ?????????????????????????????????????????????????? | | ?????????????????????????????????????????????????? | | ?????????????????????????????????????????????????? | | ?????????????????????????????????????????????????? | | ?????????????????????????????????????????????????? | | ?????????????????????????????????????????????????? | | ?????????????????????????????????????????????????? | | ????????????????????????????########?????????????? | | ????????????????????????????# "?????????????? | | ????????????????????????????# "?????????????? | | ????????????????????????????# "?????????????? | | ??????????????##+######+#####* """#??????????? | | ??????????????? !s=s #??????????? | | ??????????????? !%!= < #??????????? | | ??????????????????? /%= #??????????? | | ???????????????????????####%*! "?????????????? | | ???????????????????????# = "?????????????? | | ???????????????????????# # "?????????????? | | ???????????????????????# # "?????????????? | | ???????????????????????# %!C#### ##?????????????? | | ???????????????????????# / C#??# T#?????????????? | | ???????????????????????#h@ C#??# ##?????????????? | | ???????????????????????#h C#??# #??????????????? | | ??????????????????????#######??# #??????????????? | | ??????????????????????# ??????# #??????????????? | | ??????????????????????# ??????# #??????????????? | | ??????????????????????? ?????# #??????????????? | | ???????????????? ????? ????# #??????????????? | | ?????????????????" ###+ ##### #??????????????? | | ?????????????????" #??????????????? | | ?????????????????" #??????????????? | | ?????????????????? ####### ##+#####??????????? | | ????????????????????????????# %# #??????????? | | ????????????????????????????# # #??????????? | | ????????????????????????????" # #??????????? | | ??????????????????????????? "! " #??????????? | | ????????????????????????? " " #??????????? | | ????????????????????????# " %" #??????????? | | ????????????????????????# " %" #??????????? | | ????????????????????????# " "#######??????????? | | ????????????????????????## " "?????????????????? | | ?????????????????????????# " ["?????????????????? | | ?????????????????????????# #"! #?????????????????? | | ?????#???? ?????????????####!!###???????????????? | | ?#????????????????????????# !! #???????????????? | | ??????????????????????????###!!###???????????????? | +----------------------------------------------------+ Best States ------------- Heat Dissipation 37 Energy Generation 18 Energy Capacity 300 Matter Stores 300 Matter Capacity 300 Sight Range 16 Robot Scan Range 16 Terrain Scan Range 20 Terrain Scan Density 210 Base Temperature (-) 150 Armor Coverage 250 Resistance: EM 15 Evasion (%) 50 Target Analysis 8 Armor Integrity Analysis 30 Recoil Reduction 3 Offensive Hacking 11 Defensive Hacking 16 Item Schematics ----------------- Imp. Heavy Armor Plating | -6/Zion | Archive Adv. System Restoration Module | -6/Zion | Archive Stasis Canceller | -6/Zion | Archive Lrn. Proton Cannon | -6/Zion | Archive Imp. Hardlight Generator | -6/Zion | Archive Imp. Weapon Cycler | -6/Zion | Archive Dispersion Rifle | -6/Zion | Archive Antimatter Reactor | -6/Zion | Archive Adv. Melee Analysis Suite | -6/Zion | Archive Hyp. Coil Gun | -6/Zion | Archive Imp. Cryofiber Web | -6/Zion | Archive Antigrav System | -6/Zion | Archive Arm. Leg | -6/Zion | Archive Imp. KE Penetrator | -6/Zion | Archive Robot Schematics ------------------ G-50 Soldier | -6/Zion | Archive A-02 Transporter | -6/Zion | Archive B-48 Gladiator | -6/Zion | Archive Fabricated ------------ Nothing Repaired ---------- Nothing Alien Tech Used ----------------- None Achievements -------------- None Challenges ------------ None Game ------ Seed MappingLayeredShotgun Manual? 0 Play Time 02:09:34 Cumulative 365.1 hours Start 2025.06.05 @ 12:39:57 End 2025.06.06 @ 09:05:02 Sessions 3 Manual Loads 0 Difficulty Rogue Special Mode None Game No. 409 Rogue 409 Adventurer 0 Explorer 0 Win Type - Total 6 Types 3/1/1/1/0/0/0/0/0/0 Lore% 67 Gallery% 70 Achievement% 68 Wizard Run 0 Options --------- Layout 1 ASCII 0 Keyboard 0 Movement Numpad Keybinds 0 Fullscreen 1 Font 32/SmallcapsGlow Map View 50x35 Zoom Use 0% Tactical HUD 1 Map Filters NONE Filters NONE Steam 1 RUN: dd68c1a9-0031-4edc-a416-e4b7933729a9